fUST/lending_fUST_20251007
["ID","MTS","AMOUNT","RATE_DAILY","PERIOD"]
[389695272,1759799448783,-1141.76,0.00019178,2]
[389695273,1759799448793,-163.537934,0.00019178,2]
[389695274,1759799448802,-163.537934,0.00019178,2]
[389695275,1759799448811,-500.0,0.00019178,2]
[389695276,1759799448821,-163.537934,0.00019178,2]
[389695277,1759799448830,-163.537934,0.00019178,2]
[389695278,1759799448840,-163.537934,0.00019178,2]
[389695279,1759799448849,-163.537934,0.00019178,2]
[389695280,1759799448858,-3688.18,0.00019178,2]
[389695281,1759799448868,-163.537934,0.00019178,2]
[389695282,1759799448877,-163.537934,0.00019178,2]
[389695283,1759799448887,-163.537934,0.00019178,2]
[389695284,1759799448897,-163.537934,0.00019178,2]
[389695285,1759799448906,-500.0,0.00019178,2]
[389695286,1759799448915,-2446.97,0.00019178,2]
[389695287,1759799448925,-500.0,0.00019178,2]
[389695288,1759799448935,-163.537934,0.00019178,2]
[389695289,1759799448947,-329.0,0.00019178,2]
[389695290,1759799448957,-163.537934,0.00019178,2]
[389695291,1759799448967,-444.45065194,0.00019178,2]
[389695292,1759799448976,-440.84257118,0.00019178,2]
[389695293,1759799448987,-500.0,0.00019178,2]
[389695294,1759799448998,-329.0,0.00019178,2]
[389695295,1759799449008,-163.537934,0.00019178,2]
[389695296,1759799449018,-163.537934,0.00019178,2]
[389695297,1759799449027,-390.82980395,0.00019178,2]
[389695298,1759799449036,-163.537934,0.00019178,2]
[389695299,1759799449046,-2337.53,0.00019178,2]
[389695300,1759799449055,-163.537934,0.00019178,2]
[389695301,1759799449064,-163.537934,0.00019178,2]
[389695302,1759799449074,-163.537929,0.00019178,2]
[389695303,1759799449083,-500.0,0.00019178,2]
[389695304,1759799449093,-500.0,0.00019178,2]
[389695305,1759799449103,-269.04981201,0.00019191,2]
[389695306,1759799449111,-280.2,0.000192,2]
[389695307,1759799449120,-280.4,0.000192,2]
[389695308,1759799449130,-168.0,0.00019206,2]
[389695309,1759799449139,-168.0,0.00019211,2]
[389695310,1759799449149,-980.0,0.00019217,2]
[389695311,1759799449159,-168.0,0.00019223,2]
[389695312,1759799449168,-303.04848594,0.00019278,2]
[389695313,1759799449177,-265.29719863,0.00019278,2]
[389695314,1759799449186,-300.0,0.00019315,2]
[389695315,1759799449196,-600.0,0.00019315,2]
[389695316,1759799449205,-500.0,0.00019401,2]
[389695317,1759799449215,-609.0077614,0.00019452,2]
[389695318,1759799449223,-199.47064046,0.00019452,2]
[389695319,1759799449233,-151.0,0.00019452,2]
[389695320,1759799449243,-151.0,0.00019452,2]
[389695321,1759799449253,-198.0,0.00019452,2]
[389695322,1759799449263,-185.95209352,0.00019452,2]
[389695323,1759799449273,-1143.0,0.00019452,2]
[389695324,1759799449283,-500.0,0.00019452,2]
[389695325,1759799449292,-500.0,0.00019452,2]
[389695326,1759799449301,-151.0,0.00019452,2]
[389695327,1759799449312,-151.0,0.00019452,2]
[389695328,1759799449322,-151.0,0.00019452,2]
[389695329,1759799449332,-401.98989178,0.00019452,7]
[389695330,1759799449341,-500.0,0.00019452,2]
[389695331,1759799449351,-440.0,0.00019452,2]
[389695332,1759799449361,-500.0,0.00019452,2]
[389695333,1759799449420,-317.62677107,0.00019452,2]
[389695334,1759799449430,-440.0,0.00019452,2]
[389695335,1759799449439,-500.0,0.00019452,2]
[389695336,1759799449448,-500.0,0.00019452,2]
[389695337,1759799449457,-500.0,0.00019452,2]
[389695338,1759799449467,-500.0,0.00019452,2]
[389695339,1759799449476,-401.33612476,0.00019452,2]
[389695340,1759799449486,-500.0,0.00019452,2]
[389695341,1759799449495,-500.0,0.00019452,2]
[389695342,1759799449504,-294.93223854,0.00019452,2]
[389695343,1759799449513,-480.0,0.00019452,2]
[389695344,1759799449523,-500.0,0.00019452,2]
[389695345,1759799449532,-500.0,0.00019452,2]
[389695346,1759799449541,-500.0,0.00019452,2]
[389695347,1759799449550,-500.0,0.00019452,2]
[389695348,1759799449559,-500.0,0.00019452,2]
[389695349,1759799449569,-518.84,0.00019452,2]
[389695350,1759799449578,-500.0,0.00019452,2]
[389695351,1759799449586,-500.0,0.00019452,2]
[389695352,1759799449596,-445.95658928,0.00019452,2]
[389695353,1759799449605,-500.0,0.00019452,2]
[389695354,1759799449613,-500.0,0.00019452,2]
[389695355,1759799449623,-500.0,0.00019452,2]
[389695356,1759799449632,-383.95810223,0.00019452,2]
[389695357,1759799449642,-500.0,0.00019452,2]
[389695358,1759799449652,-500.0,0.00019452,2]
[389695359,1759799449661,-500.0,0.00019452,2]
[389695360,1759799449670,-500.0,0.00019452,2]
[389695361,1759799449681,-500.0,0.00019452,2]
[389695362,1759799449690,-500.0,0.00019452,2]
[389695363,1759799449704,-500.0,0.00019452,2]
[389695364,1759799449713,-500.0,0.00019452,2]
[389695365,1759799449723,-500.0,0.00019452,2]
[389695366,1759799449733,-1048.8,0.00019452,2]
[389695367,1759799449742,-537.14,0.00019452,2]
[389695368,1759799449753,-500.0,0.00019452,2]
[389695369,1759799449763,-407.12001894,0.00019452,2]
[389695370,1759799449772,-500.0,0.00019452,2]
[389695371,1759799449783,-500.0,0.00019452,2]
[389695372,1759799449792,-500.0,0.00019452,2]
[389695373,1759799449801,-500.0,0.00019452,2]
[389695374,1759799449811,-500.0,0.00019452,2]
[389695375,1759799449819,-500.0,0.00019452,2]
[389695376,1759799449829,-500.0,0.00019452,2]
[389695377,1759799449837,-500.0,0.00019452,2]
[389695378,1759799449847,-500.0,0.00019452,2]
[389695379,1759799449856,-572.71,0.00019452,2]
[389695380,1759799449866,-500.0,0.00019452,2]
[389695381,1759799449876,-500.0,0.00019452,2]
[389695382,1759799449885,-1000.0,0.00019452,2]
[389695383,1759799449895,-500.0,0.00019452,2]
[389695384,1759799449904,-500.0,0.00019452,2]
[389695385,1759799449913,-500.0,0.00019452,2]
[389695386,1759799449922,-500.0,0.00019452,2]
[389695387,1759799449932,-500.0,0.00019452,2]
[389695388,1759799449941,-516.6,0.00019452,2]
[389695389,1759799449951,-500.0,0.00019452,2]
[389695390,1759799449962,-441.20240693,0.00019452,2]
[389695391,1759799449971,-500.0,0.00019452,2]
[389695392,1759799449980,-372.34014194,0.00019452,2]
[389695393,1759799449989,-500.0,0.00019452,2]
[389695394,1759799449999,-500.0,0.00019452,2]
[389695395,1759799450008,-500.0,0.00019452,2]
[389695396,1759799450019,-500.0,0.00019452,2]
[389695397,1759799450029,-500.0,0.00019452,2]
[389695398,1759799450038,-500.0,0.00019452,2]
[389695399,1759799450047,-500.0,0.00019452,2]
[389695400,1759799450057,-500.0,0.00019452,2]
[389695401,1759799450066,-500.0,0.00019452,2]
[389695402,1759799450076,-500.0,0.00019452,2]
[389695403,1759799450085,-500.0,0.00019452,2]
[389695404,1759799450094,-500.0,0.00019452,2]
[389695405,1759799450103,-500.0,0.00019452,2]
[389695406,1759799450112,-385.77225225,0.00019452,2]
[389695407,1759799450121,-500.0,0.00019452,2]
[389695408,1759799450131,-500.0,0.00019452,2]
[389695409,1759799450140,-746.52,0.00019452,2]
[389695410,1759799450149,-500.0,0.00019452,2]
[389695411,1759799450158,-500.0,0.00019452,2]
[389695412,1759799450167,-500.0,0.00019452,2]
[389695413,1759799450176,-500.0,0.00019452,2]
[389695414,1759799450185,-500.0,0.00019452,2]
[389695415,1759799450195,-500.0,0.00019452,2]
[389695416,1759799450204,-500.0,0.00019452,2]
[389695417,1759799450214,-500.0,0.00019452,2]
[389695418,1759799450223,-500.0,0.00019452,2]
[389695419,1759799450233,-500.0,0.00019452,2]
[389695420,1759799450243,-500.0,0.00019452,2]
[389695421,1759799450252,-500.0,0.00019452,2]
[389695422,1759799450262,-500.0,0.00019452,2]
[389695423,1759799450271,-465.5,0.00019452,2]
[389695424,1759799450280,-500.0,0.00019452,2]
[389695425,1759799450290,-500.0,0.00019452,2]
[389695426,1759799450299,-500.0,0.00019452,2]
[389695427,1759799450308,-500.0,0.00019452,2]
[389695428,1759799450317,-500.0,0.00019452,2]
[389695429,1759799450327,-500.0,0.00019452,2]
[389695430,1759799450337,-500.0,0.00019452,2]
[389695431,1759799450346,-500.0,0.00019452,2]
[389695432,1759799450356,-520.21,0.00019452,2]
[389695433,1759799450365,-500.0,0.00019452,2]
[389695434,1759799450375,-500.0,0.00019452,2]
[389695435,1759799450385,-500.0,0.00019452,2]
[389695436,1759799450394,-500.0,0.00019452,2]
[389695437,1759799450404,-500.0,0.00019452,2]
[389695438,1759799450413,-500.0,0.00019452,2]
[389695439,1759799450422,-500.0,0.00019452,2]
[389695440,1759799450432,-500.0,0.00019452,2]
[389695441,1759799450441,-500.0,0.00019452,2]
[389695442,1759799450450,-500.0,0.00019452,2]
[389695443,1759799450459,-500.0,0.00019452,2]
[389695444,1759799450468,-500.0,0.00019452,2]
[389695445,1759799450478,-500.0,0.00019452,2]
[389695446,1759799450487,-500.0,0.00019452,2]
[389695447,1759799450495,-500.0,0.00019452,2]
[389695448,1759799450504,-544.74,0.00019452,2]
[389695449,1759799450513,-1130.47,0.00019452,2]
[389695450,1759799450523,-500.0,0.00019452,2]
[389695451,1759799450533,-500.0,0.00019452,2]
[389695452,1759799450542,-500.0,0.00019452,2]
[389695453,1759799450551,-682.42,0.00019452,2]
[389695454,1759799450561,-554.20775303,0.00019452,2]
[389695455,1759799450570,-500.0,0.00019452,2]
[389695456,1759799450579,-500.0,0.00019452,2]
[389695457,1759799450588,-500.0,0.00019452,2]
[389695458,1759799450598,-467.58241372,0.00019452,2]
[389695459,1759799450893,-32.41758628,0.00019452,2]
[389695460,1759799450902,-500.0,0.00019452,2]
[389695461,1759799450911,-500.0,0.00019452,2]
[389695462,1759799450921,-929.41,0.00019452,2]
[389695463,1759799450930,-500.0,0.00019452,2]
[389695464,1759799450939,-500.0,0.00019452,2]
[389695465,1759799450949,-500.0,0.00019452,2]
[389695466,1759799450959,-500.0,0.00019452,2]
[389695467,1759799450968,-500.0,0.00019452,2]
[389695468,1759799450977,-500.0,0.00019452,2]
[389695469,1759799450986,-500.0,0.00019452,2]
[389695470,1759799450995,-500.0,0.00019452,2]
[389695471,1759799451004,-500.0,0.00019452,2]
[389695472,1759799451013,-20.12335031,0.00019452,2]
[389695473,1759799451024,-479.87664969,0.00019452,2]
[389695474,1759799451033,-500.0,0.00019452,2]
[389695475,1759799451042,-500.0,0.00019452,2]
[389695476,1759799451051,-500.0,0.00019452,2]
[389695477,1759799451061,-500.0,0.00019452,2]
[389695478,1759799451070,-500.0,0.00019452,2]
[389695479,1759799451079,-500.0,0.00019452,2]
[389695480,1759799451088,-500.0,0.00019452,2]
[389695481,1759799451097,-500.0,0.00019452,2]
[389695482,1759799451107,-709.08,0.00019452,2]
[389695483,1759799451117,-791.99,0.00019452,2]
[389695484,1759799451126,-500.0,0.00019452,2]
[389695485,1759799451136,-500.0,0.00019452,2]
[389695486,1759799451145,-1567.09,0.00019452,2]
[389695487,1759799451154,-500.0,0.00019452,2]
[389695488,1759799451164,-500.0,0.00019452,2]
[389695489,1759799451174,-500.0,0.00019452,2]
[389695490,1759799451183,-500.0,0.00019452,2]
[389695491,1759799451193,-340.0,0.00019452,2]
[389695492,1759799451204,-500.0,0.00019452,2]
[389695493,1759799451212,-500.0,0.00019452,2]
[389695494,1759799451222,-500.0,0.00019452,2]
[389695495,1759799451231,-698.48,0.00019452,2]
[389695496,1759799451241,-647.73,0.00019452,2]
[389695497,1759799451250,-500.0,0.00019452,2]
[389695498,1759799451261,-500.0,0.00019452,2]
[389695499,1759799451270,-372.9491789,0.00019452,2]
[389695500,1759799451280,-500.0,0.00019452,2]
[389695501,1759799451290,-500.0,0.00019452,2]
[389695502,1759799451300,-360.0,0.00019452,2]
[389695503,1759799451309,-500.0,0.00019452,2]
[389695504,1759799451319,-2532.8,0.00019452,2]
[389695505,1759799451328,-500.0,0.00019452,2]
[389695506,1759799451338,-500.0,0.00019452,2]
[389695507,1759799451347,-500.0,0.00019452,2]
[389695508,1759799451356,-231.91531882,0.00019452,2]
[389695509,1759799451484,-237.64,0.00019168,3]
[389695510,1759799451495,-500.0,0.00019178,2]
[389695511,1759799451506,-268.08468118,0.00019452,2]
[389695512,1759799451516,-500.0,0.00019452,2]
[389695513,1759799451526,-500.0,0.00019452,2]
[389695514,1759799451536,-500.0,0.00019452,2]
[389695515,1759799451547,-500.0,0.00019452,2]
[389695516,1759799451556,-500.0,0.00019452,2]
[389695517,1759799451566,-500.0,0.00019452,2]
[389695518,1759799451576,-329.11031882,0.00019452,2]
[389695519,1759799451588,-170.88968118,0.00019452,2]
[389695520,1759799451599,-500.0,0.00019452,2]
[389695521,1759799451609,-500.0,0.00019452,2]
[389695522,1759799451618,-460.0,0.00019452,2]
[389695523,1759799451629,-500.0,0.00019452,2]
[389695524,1759799451639,-500.0,0.00019452,2]
[389695525,1759799451649,-500.0,0.00019452,2]
[389695526,1759799451660,-500.0,0.00019452,2]
[389695527,1759799451670,-500.0,0.00019452,2]
[389695528,1759799451680,-500.0,0.00019452,2]
[389695529,1759799451690,-500.0,0.00019452,2]
[389695530,1759799451703,-500.0,0.00019452,2]
[389695531,1759799451713,-500.0,0.00019452,2]
[389695532,1759799451723,-500.0,0.00019452,2]
[389695533,1759799451734,-500.0,0.00019452,2]
[389695534,1759799451744,-124.34031882,0.00019452,2]
[389695535,1759799452462,-1000.0,0.00019,2]
[389695536,1759799452473,-500.0,0.00019178,2]
[389695537,1759799452483,-375.65968118,0.00019452,2]
[389695538,1759799452493,-500.0,0.00019452,2]
[389695539,1759799452503,-500.0,0.00019452,2]
[389695540,1759799452513,-500.0,0.00019452,2]
[389695541,1759799452523,-500.0,0.00019452,2]
[389695542,1759799452532,-500.0,0.00019452,2]
[389695543,1759799452543,-500.0,0.00019452,2]
[389695544,1759799452552,-500.0,0.00019452,2]
[389695545,1759799452563,-500.0,0.00019452,2]
[389695546,1759799452572,-500.0,0.00019452,2]
[389695547,1759799452582,-500.0,0.00019452,2]
[389695548,1759799452592,-632.04,0.00019452,2]
[389695549,1759799452602,-500.0,0.00019452,2]
[389695550,1759799452611,-500.0,0.00019452,2]
[389695551,1759799452620,-532.17,0.00019452,2]
[389695552,1759799452630,-500.0,0.00019452,2]
[389695553,1759799452639,-500.0,0.00019452,2]
[389695554,1759799452649,-562.35,0.00019452,2]
[389695555,1759799452659,-14.40429106,0.00019452,2]
[389695556,1759799452673,-485.59570894,0.00019452,2]
[389695557,1759799452683,-500.0,0.00019452,2]
[389695558,1759799452693,-500.0,0.00019452,2]
[389695559,1759799452704,-500.0,0.00019452,2]
[389695560,1759799452717,-193.90238893,0.00019452,2]
[389695561,1759799452728,-500.0,0.00019452,2]
[389695562,1759799452739,-500.0,0.00019452,2]
[389695563,1759799452749,-500.0,0.00019452,2]
[389695564,1759799452760,-500.0,0.00019452,2]
[389695565,1759799452770,-500.0,0.00019452,2]
[389695566,1759799452781,-513.7,0.00019452,2]
[389695567,1759799452792,-500.0,0.00019452,2]
[389695568,1759799452803,-500.0,0.00019452,2]
[389695569,1759799452816,-1000.0,0.00019452,2]
[389695570,1759799452826,-537.02,0.00019452,2]
[389695571,1759799452836,-500.0,0.00019452,2]
[389695572,1759799452846,-500.0,0.00019452,2]
[389695573,1759799452856,-500.0,0.00019452,2]
[389695574,1759799452866,-523.23,0.00019452,2]
[389695575,1759799452875,-500.0,0.00019452,2]
[389695576,1759799452884,-500.0,0.00019452,2]
[389695577,1759799452894,-500.0,0.00019452,2]
[389695578,1759799452903,-500.0,0.00019452,2]
[389695579,1759799452913,-500.0,0.00019452,2]
[389695580,1759799452922,-500.0,0.00019452,2]
[389695581,1759799452931,-500.0,0.00019452,2]
[389695582,1759799452941,-567.84,0.00019452,2]
[389695583,1759799452950,-500.0,0.00019452,2]
[389695584,1759799452959,-14.79589388,0.00019452,2]
[389695585,1759799453028,-485.20410612,0.00019452,2]
[389695586,1759799453039,-500.0,0.00019452,2]
[389695587,1759799453049,-500.0,0.00019452,2]
[389695588,1759799453059,-500.0,0.00019452,2]
[389695589,1759799453069,-562.69,0.00019452,2]
[389695590,1759799453079,-894.28,0.00019452,2]
[389695591,1759799453089,-2028.78,0.00019452,2]
[389695592,1759799453099,-420.0,0.00019452,2]
[389695593,1759799453108,-500.0,0.00019452,2]
[389695594,1759799453119,-500.0,0.00019452,2]
[389695595,1759799453129,-576.84,0.00019452,2]
[389695596,1759799453139,-500.0,0.00019452,2]
[389695597,1759799453150,-500.0,0.00019452,2]
[389695598,1759799453159,-500.0,0.00019452,2]
[389695599,1759799453170,-500.0,0.00019452,2]
[389695600,1759799453179,-401.45962989,0.00019452,2]
[389695601,1759799453189,-500.0,0.00019452,2]
[389695602,1759799453199,-500.0,0.00019452,2]
[389695603,1759799453208,-500.0,0.00019452,2]
[389695604,1759799453219,-500.0,0.00019452,2]
[389695605,1759799453230,-500.0,0.00019452,2]
[389695606,1759799453240,-420.0,0.00019452,2]
[389695607,1759799453250,-500.0,0.00019452,2]
[389695608,1759799453261,-500.0,0.00019452,2]
[389695609,1759799453272,-500.0,0.00019452,2]
[389695610,1759799453282,-406.536385,0.00019452,2]
[389695611,1759799453292,-771.6,0.00019452,2]
[389695612,1759799453302,-500.0,0.00019452,2]
[389695613,1759799453312,-500.0,0.00019452,2]
[389695614,1759799453322,-500.0,0.00019452,2]
[389695615,1759799453332,-500.0,0.00019452,2]
[389695616,1759799453342,-500.0,0.00019452,2]
[389695617,1759799453352,-500.0,0.00019452,2]
[389695618,1759799453362,-500.0,0.00019452,2]
[389695619,1759799453371,-500.0,0.00019452,2]
[389695620,1759799453382,-500.0,0.00019452,2]
[389695621,1759799453392,-500.0,0.00019452,2]
[389695622,1759799453403,-500.0,0.00019452,2]
[389695623,1759799453413,-500.0,0.00019452,2]
[389695624,1759799453423,-500.0,0.00019452,2]
[389695625,1759799453433,-500.0,0.00019452,2]
[389695626,1759799453443,-500.0,0.00019452,2]
[389695627,1759799453453,-500.0,0.00019452,2]
[389695628,1759799453463,-500.0,0.00019452,2]
[389695629,1759799453473,-500.0,0.00019452,2]
[389695630,1759799453483,-500.0,0.00019452,2]
[389695631,1759799453493,-865.1,0.00019452,2]
[389695632,1759799453503,-401.27948119,0.00019452,2]
[389695633,1759799453514,-648.16,0.00019452,2]
[389695634,1759799453532,-500.0,0.00019452,2]
[389695635,1759799453543,-1088.0984445,0.00019452,2]
[389695647,1759799650743,10000.0,0.0002876,120]
[389695649,1759799668250,1000.0,0.0002876,120]
[389695677,1759799906126,469.0,0.0002876,120]
[389695693,1759800014919,445.0,0.00028767,120]
[389695751,1759800612543,172.19455568,0.00019255,9]
[389695796,1759800631949,-207.95324619,0.00018898,3]
[389695798,1759800631961,-233.84926897,0.00018899,2]
[389695801,1759800631975,-303.04242473,0.000189,2]
[389695803,1759800631985,-582.96933365,0.00018998,2]
[389695805,1759800631996,-2000.87,0.00018998,3]
[389695807,1759800632007,-403.55351459,0.00019065,2]
[389695809,1759800632017,-1200.0,0.00019076,2]
[389695811,1759800632028,-300.0,0.00019076,2]
[389695812,1759800632040,-300.0,0.00019076,2]
[389695813,1759800632051,-300.0,0.00019076,2]
[389695814,1759800632061,-300.0,0.00019076,2]
[389695816,1759800632071,-300.0,0.00019076,2]
[389695818,1759800632082,-1200.0,0.00019076,2]
[389695820,1759800632092,-2000.0,0.00019077,7]
[389695822,1759800632102,-2000.0,0.00019077,7]
[389695824,1759800632113,-1069.71311796,0.00019077,7]
[389695826,1759800632122,-500.0,0.00019077,2]
[389695828,1759800632133,-157.78569752,0.00019077,2]
[389695830,1759800632143,-500.0,0.00019077,2]
[389695832,1759800632153,-588.6814394,0.00019077,2]
[389695834,1759800632163,-318.85,0.00019077,2]
[389695836,1759800632172,-500.0,0.00019077,2]
[389695838,1759800632182,-337.72386732,0.00019077,2]
[389695840,1759800632192,-500.0,0.00019077,2]
[389695843,1759800632202,-486.72374635,0.00019077,2]
[389695846,1759800632212,-6812.50142312,0.00019078,2]
[389695849,1759800632222,-1287.83745437,0.00019078,2]
[389695852,1759800632231,-15106.10999651,0.00019078,2]
[389695964,1759800637866,-7080.30293426,0.00019078,2]
[389695965,1759800637877,-360.82507419,0.00019078,2]
[389695966,1759800637961,-400.85518522,0.00019078,2]
[389695999,1759800643328,-440.39874791,0.00018898,2]
[389696001,1759800643338,-453.79893478,0.00019078,2]
[389696007,1759800645158,151.98,0.0001579,2]
[389696032,1759800646182,-1722.43845593,0.00019078,2]
[389696036,1759800734942,455.5,0.0002876,120]
[389696037,1759800775432,177040.2,0.0002,19]
[389696089,1759801310938,1000.0,0.00028767,120]
[389696100,1759801392750,15868.05227455,0.00028767,120]
[389696140,1759801793077,309.500763,0.00023288,30]
[389696187,1759801832276,-314.9275225,0.00017976,2]
[389696189,1759801832286,-500.0,0.00018,2]
[389696191,1759801832295,-593.0423146,0.00018119,2]
[389696193,1759801832305,-239.40528527,0.00018139,2]
[389696195,1759801832315,-160.0,0.00018181,2]
[389696197,1759801832324,-353.81047337,0.0001889,2]
[389696199,1759801832333,-263.34581379,0.00018939,2]
[389696201,1759801832343,-300.0,0.00018986,2]
[389696202,1759801832353,-1200.0,0.00018986,2]
[389696204,1759801832363,-1200.0,0.00018987,2]
[389696206,1759801832372,-300.0,0.00018987,2]
[389696208,1759801832381,-300.0,0.00018987,2]
[389696210,1759801832390,-300.0,0.00018987,2]
[389696212,1759801832399,-300.0,0.00018987,2]
[389696214,1759801832409,-33468.08371073,0.00018988,2]
[389696317,1759801838045,-329.0,0.0001729,2]
[389696318,1759801838054,-329.0,0.0001729,2]
[389696319,1759801838063,-215.74337089,0.00018987,2]
[389696320,1759801838073,-10311.13400542,0.00018988,2]
[389696321,1759801838082,-12586.81710734,0.0001899,2]
[389696322,1759801838091,-1032.59708563,0.00019,5]
[389696323,1759801838100,-409.39,0.00019076,2]
[389696324,1759801838110,-170.05702017,0.00019076,2]
[389696325,1759801838119,-330.29906093,0.00019077,2]
[389696326,1759801838128,-4560.14948927,0.00019078,2]
[389696327,1759801838137,-18863.44293112,0.00019078,2]
[389696328,1759801838148,-5844.82373672,0.00019078,2]
[389696329,1759801838157,-4687.2646278,0.00019078,2]
[389696330,1759801838214,2438.15188869,0.0002612,55]
[389696771,1759801843138,-576.29495198,0.00019078,2]
[389697085,1759801846047,-23455.47928618,0.00019078,2]
[389697087,1759801846057,-503.18887952,0.00019096,2]
[389697089,1759801846067,-183.3665372,0.00019127,2]
[389697092,1759801846076,-881.6370213,0.00019127,2]
[389697100,1759801846152,-3649.7721477,0.00019127,2]
[389697102,1759801846162,-1535.9119654,0.00019127,2]
[389697104,1759801846171,-977.8,0.00019165,2]
[389697105,1759801846180,-5526.1645185,0.00019166,2]
[389697106,1759801846192,-441.38932044,0.00019166,2]
[389699475,1759801946221,160.72676,0.000245,30]
[389699505,1759802343219,751.308675,0.00013699,2]
[389699524,1759802479831,2779.04,0.00028767,120]
[389699529,1759802578462,1000.0,0.00025,30]
[389699547,1759802870469,2686.0,0.00028767,120]
[389699571,1759803032278,-5000.0,0.000168,2]
[389699573,1759803032288,-165.04515383,0.00016862,2]
[389699575,1759803032297,-245.05506366,0.00016863,2]
[389699577,1759803032306,-342.73830832,0.00016864,2]
[389699579,1759803032315,-1200.0,0.00016961,2]
[389699581,1759803032325,-188.0,0.00016961,2]
[389699583,1759803032335,-300.0,0.00016961,2]
[389699585,1759803032344,-1200.0,0.00016961,2]
[389699587,1759803032353,-20283.43549079,0.00016963,2]
[389699589,1759803032362,-7818.41653692,0.00016964,2]
[389699592,1759803032383,-431.66898458,0.00016964,2]
[389699684,1759803038130,-22128.16087791,0.00016964,2]
[389699685,1759803038140,-166.0,0.00016964,2]
[389699686,1759803038150,-256.09363206,0.0001728,2]
[389699687,1759803038159,-151.0,0.0001728,2]
[389699688,1759803038169,-151.0,0.0001728,2]
[389699689,1759803038179,-151.0,0.0001728,2]
[389699690,1759803038188,-151.0,0.0001728,2]
[389699691,1759803038198,-151.0,0.0001728,2]
[389699692,1759803038208,-151.0,0.0001728,2]
[389699693,1759803038218,-151.0,0.0001728,2]
[389699694,1759803038228,-151.0,0.0001728,2]
[389699695,1759803038238,-151.0,0.0001728,2]
[389699696,1759803038248,-151.0,0.0001728,2]
[389699697,1759803038258,-151.0,0.0001728,2]
[389699698,1759803038268,-151.0,0.0001728,2]
[389699700,1759803038278,-151.0,0.0001728,2]
[389699701,1759803038288,-151.0,0.0001728,2]
[389699702,1759803038298,-253.25776274,0.0001728,2]
[389699703,1759803038308,-329.0,0.00017493,2]
[389699704,1759803038322,-329.0,0.00017493,2]
[389699705,1759803038338,-329.0,0.00017493,2]
[389699706,1759803038350,-329.0,0.00017493,2]
[389699707,1759803038361,-329.0,0.00017634,2]
[389699708,1759803038371,-329.0,0.00017634,2]
[389699709,1759803038381,-329.0,0.00017634,2]
[389699710,1759803038391,-329.0,0.00017634,2]
[389699711,1759803038401,-329.0,0.00017634,2]
[389699712,1759803038415,-329.0,0.00017634,2]
[389699713,1759803038425,-329.0,0.00017634,2]
[389699714,1759803038434,-329.0,0.00017634,2]
[389699715,1759803038444,-267.17019605,0.00017634,2]
[389699716,1759803038454,-300.0,0.00017635,2]
[389699717,1759803038467,-300.0,0.00017635,2]
[389699718,1759803038476,-300.0,0.00017635,2]
[389699719,1759803038487,-300.0,0.00017635,2]
[389699720,1759803038497,-300.0,0.00017635,2]